[Event "SixDays Budapest March GM-B 2023"]
[Site "Budapest"]
[Date "2023.03.29"]
[Round "9.3"]
[White "Royal, Shreyas"]
[Black "Ilincic, Zlatko"]
[Result "0-1"]
[ECO "B13"]
[WhiteElo "2452"]
[BlackElo "2302"]
[Annotator "TA"]
[PlyCount "82"]
[EventDate "2023.03.24"]
[EventType "tourn"]
[EventCountry "HUN"]
[SourceTitle "playchess.com"]
[Source "ChessBase"]
[SourceQuality "1"]
[TimeControl "5400+30"]

{[%evp 13,82,16,24,0,0,0,0,-6,0,-17,9,0,13,18,31,12,22,0,0,0,35,9,68,68,289,292,347,340,347,282,319,-21,-21,-32,-8,-8,2,2,4,0,0,0,0,0,0,-127,-125,-152,-145,-151,-165,-163,-154,-529,-525,-905,-895,-894,-852,-1560,-1536,-1529,-1477,-1360,-1195,-1370,-1295,-1344,-1272,-3589,-3167]} 1. e4 c6 {[%emt 0:01:13]} 2. d4 {[%emt 0:00:40]} d5 {[%emt 0:00:08]} 3. exd5 {[%emt 0:00:05]} cxd5 {[%emt 0:00:06]} 4. Bd3 {[%emt 0:00:04]} Nf6 {[%emt 0:00:39]} 5. h3 {[%emt 0:00:37]} Nc6 {[%emt 0:01:09]} 6. c3 {[%emt 0:00:35]} e5 {[%emt 0:01:05]} 7. dxe5 {[%emt 0:00:28]} Nxe5 {[%emt 0:00:08]} 8. Bc2 {[%emt 0:00:42] B13: Caro-Kann: Exchange Variation and Panov-Botvinnik Attack.} Bc5 {[%emt 0:01:05] And now ...Qb6 would win.} 9. Ne2 {[%emt 0:01:08]} O-O {[%emt 0:12:39]} 10. Nd2 {[%emt 0:00:42] Prevents Ne4. The position is equal.} Re8 {[%emt 0:10:41]} 11. O-O {[%emt 0:02:51]} b6 {[%emt 0:03:49]} 12. Nb3 {[%emt 0:05:43]} Ba6 {[%emt 0:02:48][%cal Oe5f3]} 13. Re1 $1 {[%emt 0:00:37]} Ne4 {[%emt 0:05:47] [#]} 14. Nxc5 $146 {[%emt 0:00:43]} ({Predecessor:} 14. Bxe4 dxe4 15. Nxc5 bxc5 16. Qa4 Nd3 17. Rd1 {1-0 Nguyen T Kim,N-Nguyen T Thanh,A Ho Chi Minh (Women) 4th rapid 1999 (2)}) 14... bxc5 {[%emt 0:01:57]} 15. Ng3 {[%emt 0:08:59]} Nxg3 {[%emt 0:02:23]} 16. fxg3 {[%emt 0:00:55]} f6 {[%emt 0:04:11]} 17. Bf4 {[%emt 0:00:30]} (17. Be3 $5 {[%cal Re3c5]}) 17... d4 {[%emt 0:12:01]} ({Better is} 17... Qd6 $11) 18. Bxe5 $14 {[%emt 0:04:00]} fxe5 $2 {[%emt 0:00:13] [#]} (18... Rxe5 $2 19. Rxe5 fxe5 20. Be4 $16) (18... d3 $1 $14) 19. Be4 $1 $18 {[%emt 0:00:18]} Rb8 {[%emt 0:00:34] [#]} 20. Qh5 $1 {[%emt 0:15:27]} h6 {[%emt 0:00:42][%cal Bh7h6,Bh6h5][%mdl 32]} 21. Qf5 {[%cal Oe1f1] Threatens to win with Rf1!} Rb6 22. b3 $2 {[%emt 0:01:17]} (22. Qh7+ $18 Kf7 23. cxd4 (23. Qf5+ Rf6 $11) 23... Qxd4+ 24. Kh2) 22... g6 $36 {[%emt 0:01:53][%mdl 2048] Black has some pressure.} 23. Qg4 {[%emt 0:02:01]} h5 {[%emt 0:00:35]} (23... dxc3 $2 24. Bxg6 Re7 25. Be4+ Rg7 26. Qf3 $18) 24. Qd1 {[%emt 0:07:23]} Bb7 {[%emt 0:02:42]} ({Don't do} 24... dxc3 25. Qc2 $14) (24... Rf6 {keeps more tension.} 25. g4 hxg4 26. Qxg4 Kg7) 25. Bxb7 {[%emt 0:00:46]} Rxb7 {[%emt 0:00:07]} 26. Qd3 {[%emt 0:00:04]} Kg7 {[%emt 0:00:35]} 27. Rad1 {[%emt 0:00:52]} Qa5 {[%emt 0:03:10]} 28. Qe4 {[%emt 0:09:17]} Rbe7 {[%emt 0:01:23]} 29. c4 (29. b4 $11 Qb6 30. Qd5) 29... Qxa2 $17 {[%emt 0:00:57]} 30. Ra1 {[%emt 0:01:35]} Qxb3 {[%emt 0:00:16]} 31. Ra6 {[%emt 0:00:04]} Qxg3 {[%emt 0:00:18]} 32. Rf1 {[%emt 0:01:52]} Rb8 {[%emt 0:10:25]} 33. Qc6 $2 {[%emt 0:03:20]} (33. Rf3 $17 {is tougher.} Qg5 34. Kh2) 33... Kh6 $19 {[%emt 0:02:49] ...e4 is the strong threat. Black is clearly winning.} 34. h4 {[%emt 0:03:19]} e4 {[%emt 0:02:37][%cal Be5e4,Be4e3][%mdl 32] ( -> ...Rb2)} (34... Qxh4 $2 35. Qxg6#) 35. Qf6 {[%emt 0:00:10] Repels Rb2} Rg7 {[%emt 0:00:34]} 36. Ra2 {[%emt 0:04:41]} e3 {[%emt 0:01:31]} 37. Qe6 {[%emt 0:00:11]} Qxh4 {[%emt 0:00:25]} 38. Qe5 {[%emt 0:00:04]} Rc8 {[%emt 0:00:43]} 39. Qd6 {[%emt 0:01:16]} Qd8 {[%emt 0:01:37]} 40. Qf4+ {[%emt 0:00:05]} Qg5 {[%emt 0:00:07] Hoping for ...Qxf4.} 41. Qd6 {[%emt 0:00:04]} Rd8 {[%emt 0:00:11] Quite a comeback for Black.   Weighted Error Value: White=0.74/Black=0.29 (precise)} 0-1

[Event "SixDays Budapest March GM-B 2023"]
[Site "Budapest"]
[Date "2023.03.29"]
[Round "9.4"]
[White "Joshua, A P"]
[Black "Swayams, Mishra"]
[Result "0-1"]
[ECO "C50"]
[WhiteElo "2300"]
[BlackElo "2489"]
[Annotator "TA"]
[PlyCount "94"]
[EventDate "2023.03.24"]
[EventType "tourn"]
[EventCountry "HUN"]
[SourceTitle "playchess.com"]
[Source "ChessBase"]
[SourceQuality "1"]
[TimeControl "5400+30"]

{[%evp 12,94,45,-14,6,0,47,6,21,28,44,15,52,47,58,33,66,32,35,34,55,52,60,47,55,18,109,112,121,71,74,64,74,64,70,66,69,53,41,46,45,25,42,36,31,-43,-43,-38,-38,-43,-33,-44,-36,-70,-91,-109,-78,-73,-76,-308,-278,-231,-269,-376,-311,-478,-489,-637,-633,-633,-618,-981,-958,-604,-551,-29972,-29973,-29973,-29974,-29974,-29975,-29974,-29972,-6087,-5653]} 1. e4 {[%emt 0:00:35]} e5 {[%emt 0:14:49]} 2. Nf3 {[%emt 0:00:13]} Nc6 {[%emt 0:00:36]} 3. Bc4 {[%emt 0:00:35]} d6 {[%emt 0:00:02]} 4. d3 {[%emt 0:04:11]} Be7 {[%emt 0:02:03]} 5. c3 {[%emt 0:02:14]} Nf6 {[%emt 0:00:48]} 6. O-O {[%emt 0:03:24]} O-O {[%emt 0:00:03]} 7. b4 {[%emt 0:00:55]} (7. a4 $14) 7... a6 {[%emt 0:06:44] C55: Two Knights: 4 d3, 4 d4 exd4 5 e5 and Max Lange Attack.} 8. a4 {[%emt 0:06:33]} Be6 {[%emt 0:04:29]} (8... d5 $11 9. exd5 Nxd5) 9. Nbd2 {[%emt 0:05:52]} Qd7 {[%emt 0:01:49] The position is equal.} 10. Re1 {[%emt 0:01:58] [#]} Kh8 $146 {[%emt 0:04:34]} ({Predecessor:} 10... d5 11. exd5 Nxd5 12. Ne4 f6 13. Bb3 Rfe8 14. Bd2 b6 15. Ng3 Bf8 16. Bc2 Rad8 17. Qb1 {1-0 Bologan,V (2682)-Kakageldyev,A (2449) Olympiad-38 Dresden 2008 (8)}) 11. Rb1 {[%emt 0:11:11]} Rae8 {[%emt 0:02:06]} 12. Qc2 {[%emt 0:14:19]} Nh5 {[%emt 0:01:33]} 13. b5 {[%emt 0:12:25]} axb5 {[%emt 0:00:14]} 14. axb5 {[%emt 0:02:19]} Nd8 {[%emt 0:00:26]} 15. d4 {[%emt 0:01:05][%cal Bd3d4,Bd4d5][%mdl 32]} Nf4 {[%emt 0:02:52]} 16. Bf1 {[%emt 0:05:11]} (16. dxe5 Bxc4 17. Nxc4 Nxg2 18. Kxg2 Qg4+ 19. Kf1 Qxf3 $15) 16... f6 {[%emt 0:03:45]} 17. Kh1 {[%emt 0:05:46]} g5 {[%emt 0:01:43]} 18. Ng1 {[%emt 0:01:24]} Ng6 {[%emt 0:02:12]} (18... exd4 $11 19. cxd4 d5) 19. d5 $16 {[%emt 0:05:36]} Bg8 {[%emt 0:00:32]} 20. Nc4 {[%emt 0:01:52]} (20. g3 $142) 20... f5 {[%emt 0:01:58]} 21. exf5 {[%emt 0:01:55]} Nh4 {[%emt 0:01:44]} 22. Ne3 {[%emt 0:04:06] [#] Strongly threatening Bd3.} Nxf5 {[%emt 0:00:16]} 23. Rd1 {[%emt 0:00:26]} b6 {[%emt 0:07:47]} 24. Nxf5 {[%emt 0:01:33]} (24. Bd3 $5 {[%cal Rd3f5]} Nxe3 25. Bxe3 $14) 24... Qxf5 {[%emt 0:00:27]} 25. Qxf5 {[%emt 0:00:24]} Rxf5 {[%emt 0:00:01]} 26. f3 {[%emt 0:00:39]} Nb7 {[%emt 0:01:02]} 27. Be3 {[%emt 0:01:23]} Ra8 {[%emt 0:00:25]} 28. Bd3 {[%emt 0:00:28]} (28. Ra1 $14 Rff8 29. Ra6) 28... Rff8 $15 {[%emt 0:00:05]} 29. Be4 {[%emt 0:00:19]} Ra3 {[%emt 0:00:18]} ({But not} 29... Nc5 30. Bxc5 bxc5 31. Ra1 $14) 30. Rdc1 {[%emt 0:01:15]} Rfa8 {[%emt 0:01:12]} 31. Ne2 {[%emt 0:01:05]} Na5 {[%emt 0:01:20][%cal Bb7a5,Ba5c4,Bc4b2,Bb2d3,Bd3c1][%mdl 32]} 32. Kg1 {[%emt 0:01:12]} Nc4 {[%emt 0:01:17]} 33. Kf2 {[%emt 0:00:07]} Ra2 {[%emt 0:05:03][%cal Og5g4]} (33... Nxe3 {simplifies} 34. Kxe3 g4 35. Rc2 Bg5+) 34. g4 {[%emt 0:01:46]} h5 {[%emt 0:08:23] Black is more active.} 35. h3 {[%emt 0:00:18] [#] This move loses the game for White.} (35. gxh5 $2 {perishes.} g4 36. Bh6 Bh4+ 37. Kg1 Rxe2 $19) (35. Rb4 $17 Nxe3 36. Kxe3) 35... Bh7 $1 $19 {[%emt 0:00:21]} 36. Bxh7 {[%emt 0:01:21]} Kxh7 {[%emt 0:00:01]} 37. Rb4 {[%emt 0:00:18]} Nb2 {[%emt 0:00:02] White must now prevent ...Nd3+.} 38. Kf1 {[%emt 0:01:44]} (38. Bd2 $142 Nd3+ 39. Ke3 Nxb4 40. cxb4 R8a3+ 41. Rc3) 38... Nd3 $1 {[%emt 0:00:06][%csl LRb4,LRc1] Threatens to win with ...Rf8.} 39. Rc4 {[%emt 0:00:13][%cal Oc4c7]} Rf8 {[%emt 0:01:54]} 40. Ng1 {[%emt 0:01:17][%cal Oc4c7]} Nxc1 {[%emt 0:00:18]} 41. Rxc7 {[%emt 0:00:24]} Nd3 {[%emt 0:02:00]} 42. Rxe7+ {[%emt 0:00:42]} Kh8 {[%emt 0:00:01] ...Rfa8 is the strong threat.} 43. Re6 {[%emt 0:00:26]} Rb2 {[%emt 0:02:20]} 44. Rh6+ {[%emt 0:00:54]} Kg7 {[%emt 0:00:01]} 45. Rxh5 {[%emt 0:00:19]} Ra8 {[%emt 0:00:09]} ({Weaker is} 45... Rxb5 46. Rxg5+ Kf7 47. Ke2 $15) 46. Rxg5+ {[%emt 0:00:09]} Kf7 {[%emt 0:00:01]} 47. Rf5+ {[%emt 0:00:49]} Ke8 {[%emt 0:00:05] Weighted Error Value: White=0.54/Black=0.10 (very precise)} 0-1

[Event "SixDays Budapest March GM-B 2023"]
[Site "Budapest"]
[Date "2023.03.29"]
[Round "9.5"]
[White "Tran, Thanh Tu"]
[Black "Priasmoro, Novendra"]
[Result "1-0"]
[ECO "A45"]
[WhiteElo "2402"]
[BlackElo "2521"]
[Annotator "TA"]
[PlyCount "103"]
[EventDate "2023.03.24"]
[EventType "tourn"]
[EventCountry "HUN"]
[SourceTitle "playchess.com"]
[Source "ChessBase"]
[SourceQuality "1"]
[TimeControl "5400+30"]

{[%evp 9,103,-2,-2,-4,8,3,7,0,6,-20,-14,0,0,0,0,-18,-18,-35,0,0,0,-11,0,0,11,20,12,12,29,0,0,0,0,0,0,0,0,0,0,-18,-21,-17,-17,-39,-33,-75,-66,-75,-71,-83,-32,-58,-13,-18,-4,-4,-4,-3,-5,-5,-4,-30,-29,-37,-37,-33,0,0,4,4,4,4,8,8,6,0,0,-8,-8,-8,85,85,223,213,1800,1729,2669,2540,5777,5777,3091,3091,29971,29972,29954,5147]} 1. d4 {[%emt 0:00:49]} Nf6 {[%emt 0:13:32]} 2. Nc3 {[%emt 0:00:10]} d5 {[%emt 0:00:13]} 3. Bf4 {[%emt 0:00:11]} g6 {[%emt 0:00:05]} 4. Nf3 {[%emt 0:00:17]} Bg7 {[%emt 0:00:06]} 5. Nb5 {[%emt 0:00:12]} Na6 {[%emt 0:00:21]} 6. e3 {[%emt 0:00:18] D00: 1 d4 d5: Unusual lines.} c6 {[%emt 0:00:50]} 7. Nc3 {[%emt 0:00:09]} Qb6 {[%emt 0:00:28]} 8. Rb1 {[%emt 0:00:07] The position is equal.} Bg4 {[%emt 0:04:01]} 9. Be5 {[%emt 0:12:58]} O-O {[%emt 0:01:26]} 10. Be2 {[%emt 0:02:35] [#]} Nd7 $146 {[%emt 0:02:16] And now ...Bxf3 would win.} ({Predecessor:} 10... Nc7 11. O-O Nd7 12. Bxg7 Kxg7 13. b4 Ne6 14. a4 Qc7 15. Nd2 Bxe2 16. Nxe2 Rfd8 {1-0 Dreisch,J (1926)-Rohloff,F (1670) GER OS-280 email 2015}) 11. Bxg7 Kxg7 {[%emt 0:00:07]} 12. h3 {[%emt 0:15:09][%cal Bh2h3,Bh3h4,Bh4h5][%mdl 32]} Bxf3 {[%emt 0:00:10]} 13. gxf3 {[%emt 0:00:04]} e5 {[%emt 0:03:32]} 14. dxe5 {[%emt 0:00:30]} Nxe5 {[%emt 0:00:10]} 15. h4 {[%emt 0:00:20]} Rad8 {[%emt 0:00:26]} 16. h5 $1 {[%emt 0:03:45]} Rfe8 {[%emt 0:09:10] Hoping for ...d4.} 17. Kf1 {[%emt 0:02:05][%cal Ob2b4]} d4 {[%emt 0:07:34]} 18. exd4 {[%emt 0:01:08]} Qxd4 {[%emt 0:00:09]} 19. Qc1 {[%emt 0:00:13] Repels Qf4} (19. h6+ {simplifies} Kf8 20. Qxd4 Rxd4 21. Ne4) 19... Nc4 {[%emt 0:13:05]} 20. Bxc4 {[%emt 0:00:36]} Qxc4+ {[%emt 0:00:02]} 21. Kg2 {[%emt 0:00:06]} Rd4 {[%emt 0:01:55]} 22. h6+ {[%emt 0:03:07]} (22. hxg6 $5 Rg4+ $8 23. fxg4 Qxg4+ 24. Kf1 Qc4+ 25. Kg2 Qg4+ 26. Kf1 Qc4+ 27. Ne2 (27. Kg2 Qg4+ $11) 27... Qxe2+ 28. Kg2 Qg4+ 29. Kf1 Qe2+ 30. Kg2 Qg4+ 31. Kf1 Qe2+ $11) 22... Kf8 {[%emt 0:00:29]} 23. Qg5 {[%emt 0:13:08]} Qc5 $36 {[%emt 0:04:36][%mdl 2048] Black fights for an advantage.} 24. Ne4 {[%emt 0:00:43]} Qxg5+ {[%emt 0:01:23]} 25. Nxg5 {[%emt 0:00:02]} f6 $1 {[%emt 0:05:23]} 26. Ne4 {[%emt 0:05:15]} Kf7 {[%emt 0:01:36]} 27. Rh4 {[%emt 0:01:29][%cal Oe4g5]} Re5 {[%emt 0:00:35] Against Ng5+} 28. Rf4 {[%emt 0:16:16] [#]} g5 $1 {[%emt 0:02:57]} 29. Rg4 {[%emt 0:00:50][%cal Oe4f6]} (29. Rxf6+ $2 Ke7 30. Rh1 Rdxe4 $19) 29... Red5 {[%emt 0:06:17]} (29... Rd7 $17) 30. Re1 {[%emt 0:06:52]} Rd7 {[%emt 0:03:30]} 31. c3 {[%emt 0:01:17]} Rd1 {[%emt 0:02:21]} 32. Rxd1 {[%emt 0:02:35]} Rxd1 $11 {[%emt 0:00:08][%mdl 4096] Endgame KRN-KRN} 33. f4 {[%emt 0:00:04]} Kg6 {[%emt 0:00:41]} 34. Rg3 $1 {[%emt 0:00:35][%cal Rf4g5]} Kf5 {[%emt 0:05:04]} 35. fxg5 {[%emt 0:09:24]} (35. f3 $5 {[%cal Rf4g5]} Kxf4 36. Nxf6 Rd2+ 37. Kh3 $11) 35... Kxe4 {[%emt 0:00:08]} 36. gxf6 {[%emt 0:00:14] KRN-KR} Rd8 $1 {[%emt 0:01:25]} 37. Rg7 {[%emt 0:00:31][%csl LRb7,LRh7]} Rb8 {[%emt 0:01:20]} 38. Rxh7 {[%emt 0:01:04]} Kf5 {[%emt 0:00:19]} 39. b4 {[%emt 0:01:10]} Kxf6 {[%emt 0:04:47]} 40. Rg7 {[%emt 0:00:09]} Rc8 {[%emt 0:06:58] ...Rc7 is the strong threat.} 41. Rxb7 {[%emt 0:00:14] Strongly threatening h7.} Nc7 {[%emt 0:00:37]} 42. Rxa7 {[%emt 0:00:22]} Nb5 {[%emt 0:00:43][%csl LRa7,LRc3]} 43. Rd7 {[%emt 0:01:21] Black must now prevent a4.} Nxc3 {[%emt 0:00:20]} 44. h7 {[%cal Od7c7]} Nd5 {[%emt 0:00:30] [#] Repels Rc7} (44... Nxa2 $11 45. Rc7 Rb8) 45. b5 $1 $16 {[%emt 0:00:51][%cal Bb4b5,Bb5b6,Bb6b7][%mdl 1056] Threatens to win with bxc6. White has strong compensation.} Nf4+ {[%emt 0:00:42] [#] A mistake that costs the game.} (45... Ke6 $16 46. Rg7 (46. bxc6 Rh8 $16) 46... Rh8) (45... Rh8 46. bxc6) 46. Kg3 $1 $18 {[%emt 0:00:16]} ({Worse is} 46. Kf3 Ng6 47. Rd6+ Kg7 $11) 46... Ng6 $2 {[%emt 0:00:31]} (46... Nd5 47. b6 Nxb6) 47. b6 {[%emt 0:00:10]} Ne7 {[%emt 0:00:31]} 48. b7 {[%emt 0:00:46]} Rh8 {[%emt 0:00:29]} 49. Rc7 {[%emt 0:00:37]} Nf5+ {[%emt 0:00:31]} 50. Kg2 {[%emt 0:00:50] Rc8 would kill now.} Nd6 {[%emt 0:00:30] Inhibits Rc8.} 51. Rxc6 {[%emt 0:01:32]} Ke7 {[%emt 0:00:28]} 52. Rb6 {[%emt 0:00:13] Weighted Error Value: White=0.06 (flawless) /Black=0.24 (precise)} (52. Rc8 $142 Nxc8 53. b8=Q (53. b8=R Kd6 $11) 53... Kf7 54. Qe5 Rxh7 55. Qf5+ Kg7 56. Qxc8 Rh6 57. Qd7+ Kf8 58. a4) 1-0